Workbook

Sheet Лист1
A1: Школа | C1: МБОУ "Бакрчинская НОШ-ДС ЗМР РТ" | F1: Утвердил: | G1: должность | H1: директор
A2: Типовое примерное меню приготавливаемых блюд | G2: фамилия | H2: Сафиуллин Д.Т.
A3: Возрастная категория | E3: 7-11 лет | G3: дата | H3: 9 | I3: 1 | J3: 2024
H4: день | I4: месяц | J4: год
A5: Неделя | B5: День недели | C5: Прием пищи | D5: Раздел меню | E5: Блюда | F5: Вес блюда, г | G5: Белки | H5: Жиры | I5: Углеводы | J5: Калорийность | K5: № рецептуры | L5: Цена
A6: 1 | B6: 1 | C6: Завтрак | D6: гор.блюдо | E6: котлеты куриные с отварным рисом | F6: 90/150 | G6: 16.09 | H6: 16.52 | I6: 31.93 | J6: 331 | K6: ттк 2022/ 303/2015
D7: закуска | E7: салат из белокочанной капусты | F7: 60 | G7: 0.3 | H7: 0.1 | I7: 5.65 | J7: 25 | K7: 45/2015
D8: гор.напиток | E8: Напиток из вишни | F8: 200 | G8: 0.12 | H8: 0.03 | I8: 11.57 | J8: 48 | K8: ттк 2023
D9: хлеб | E9: хлебная корзина | F9: 20/20 | G9: 2.52 | H9: 0.36 | I9: 18.84 | J9: 91
D10: фрукты
D13: итого | F13: 540 | G13: 19.03 | H13: 17.01 | I13: 67.99 | J13: 504.42 | L13: 66.76
A14: =A6 -> 1 | B14: 1 | C14: Завтрак 2 | D14: фрукты
D17: итого | F17: =SUM(F14:F16) -> 0 | G17: 0 | H17: 0 | I17: 0 | J17: 0 | L17: =SUM(L14:L22) -> #REF!
A18: =A6 -> 1 | B18: 1 | C18: Обед | D18: закуска
D19: 1 блюдо
D20: 2 блюдо
D21: гарнир
D22: напиток
D23: хлеб бел.
D24: хлеб черн.
D27: итого | F27: =SUM(F18:F26) -> 0 | G27: 0 | H27: 0 | I27: 0 | J27: 0 | L27: =SUM(L24:L32) -> #REF!
A28: =A6 -> 1 | B28: 1 | C28: Полдник | D28: булочное
D29: напиток
D32: итого | F32: =SUM(F28:F31) -> 0 | G32: 0 | H32: 0 | I32: 0 | J32: 0 | L32: =SUM(L25:L31) -> #REF!
A33: =A6 -> 1 | B33: 1 | C33: Ужин | D33: гор.блюдо
D34: гарнир
D35: напиток
D36: хлеб
D39: итого | F39: =SUM(F33:F38) -> 0 | G39: 0 | H39: 0 | I39: 0 | J39: 0 | L39: =SUM(L33:L41) -> #REF!
A40: =A6 -> 1 | B40: 1 | C40: Ужин 2 | D40: кисломол.
D41: булочное
D42: напиток
D43: фрукты
D46: итого | F46: =SUM(F40:F45) -> 0 | G46: 0 | H46: 0 | I46: 0 | J46: 0 | L46: =SUM(L40:L48) -> #REF!
A47: =A6 -> 1 | B47: 1 | C47: Итого за день: | F47: =F13+F17+F27+F32+F39+F46 -> 540 | G47: 19.03 | H47: 17.01 | I47: 67.99 | J47: 504.42 | L47: 66.76
A48: 1 | B48: 2 | C48: Завтрак | D48: гор.блюдо | E48: Жаркое по домашнему | F48: 40/120 | G48: 11.24 | H48: 14.5 | I48: 29.87 | J48: 295 | K48: ттк 2022
D49: закуска | E49: салат из маркови | F49: 60 | G49: 0.9 | H49: 3.05 | I49: 7.09 | J49: 59 | K49: ттк2021
D50: гор.напиток | E50: чай с сахаром | F50: 200/8 | G50: 0.01 | H50: 0.01 | I50: 7.99 | J50: 32 | K50: ттк2021
D51: хлеб | E51: хлебная корзина | F51: 20/20 | G51: 2.52 | H51: 0.36 | I51: 18.84 | J51: 91
D52: фрукты
D55: итого | F55: 508 | G55: =SUM(G48:G54) -> 14.67 | H55: 17.92 | I55: 63.79 | J55: 477.35 | L55: 66.76
A56: =A48 -> 1 | B56: 2 | C56: Завтрак 2 | D56: фрукты
D59: итого | F59: =SUM(F56:F58) -> 0 | G59: 0 | H59: 0 | I59: 0 | J59: 0 | L59: =SUM(L56:L64) -> #REF!
A60: =A48 -> 1 | B60: 2 | C60: Обед | D60: закуска
D61: 1 блюдо
D62: 2 блюдо
D63: гарнир
D64: напиток
D65: хлеб бел.
D66: хлеб черн.
D69: итого | F69: =SUM(F60:F68) -> 0 | G69: 0 | H69: 0 | I69: 0 | J69: 0 | L69: =SUM(L66:L74) -> #REF!
A70: =A48 -> 1 | B70: 2 | C70: Полдник | D70: булочное
D71: напиток
D74: итого | F74: =SUM(F70:F73) -> 0 | G74: 0 | H74: 0 | I74: 0 | J74: 0 | L74: =SUM(L67:L73) -> #REF!
A75: =A48 -> 1 | B75: 2 | C75: Ужин | D75: гор.блюдо
D76: гарнир
D77: напиток
D78: хлеб
D81: итого | F81: =SUM(F75:F80) -> 0 | G81: 0 | H81: 0 | I81: 0 | J81: 0 | L81: =SUM(L75:L83) -> #REF!
A82: =A48 -> 1 | B82: 2 | C82: Ужин 2 | D82: кисломол.
D83: булочное
D84: напиток
D85: фрукты
D88: итого | F88: =SUM(F82:F87) -> 0 | G88: 0 | H88: 0 | I88: 0 | J88: 0 | L88: =SUM(L82:L90) -> #REF!
A89: =A48 -> 1 | B89: 2 | C89: Итого за день: | F89: =F55+F59+F69+F74+F81+F88 -> 508 | G89: 14.67 | H89: 17.92 | I89: 63.79 | J89: 477.35 | L89: 66.76
A90: 1 | B90: 3 | C90: Завтрак | D90: гор.блюдо | E90: гуляж из птицы с макаронами отварными с сыром | F90: 45/45/140 | G90: 16.71 | H90: 14.76 | I90: 38.89 | J90: 170 | K90: ттк 2021/202/2015
D91: закуска | E91: салат из свеклы с соусом | F91: 60 | G91: 0.9 | H91: 5.44 | I91: 7.31 | J91: 70 | K91: ттк 2015/52
D92: гор.напиток | E92: чай с сахаром, лимоном | F92: 200/8/7 | G92: 0.07 | H92: 0.01 | I92: 8.21 | J92: 35 | K92: ттк 2021
D93: хлеб | E93: хлебная корзина | F93: 20/20 | G93: 2.52 | H93: 0.36 | I93: 18.84 | J93: 91
D94: фрукты
D97: итого | F97: 555 | G97: =SUM(G90:G96) -> 20.2 | H97: 20.57 | I97: 70.25 | J97: 551.78 | L97: 66.76
A98: =A90 -> 1 | B98: 3 | C98: Завтрак 2 | D98: фрукты
D101: итого | F101: =SUM(F98:F100) -> 0 | G101: 0 | H101: 0 | I101: 0 | J101: 0 | L101: =SUM(L98:L106) -> #REF!
A102: =A90 -> 1 | B102: 3 | C102: Обед | D102: закуска
D103: 1 блюдо
D104: 2 блюдо
D105: гарнир
D106: напиток
D107: хлеб бел.
D108: хлеб черн.
D111: итого | F111: =SUM(F102:F110) -> 0 | G111: 0 | H111: 0 | I111: 0 | J111: 0 | L111: =SUM(L108:L116) -> #REF!
A112: =A90 -> 1 | B112: 3 | C112: Полдник | D112: булочное
D113: напиток
D116: итого | F116: =SUM(F112:F115) -> 0 | G116: 0 | H116: 0 | I116: 0 | J116: 0 | L116: =SUM(L109:L115) -> #REF!
A117: =A90 -> 1 | B117: 3 | C117: Ужин | D117: гор.блюдо
D118: гарнир
D119: напиток
D120: хлеб
D123: итого | F123: =SUM(F117:F122) -> 0 | G123: 0 | H123: 0 | I123: 0 | J123: 0 | L123: =SUM(L117:L125) -> #REF!
A124: =A90 -> 1 | B124: 3 | C124: Ужин 2 | D124: кисломол.
D125: булочное
D126: напиток
D127: фрукты
D130: итого | F130: =SUM(F124:F129) -> 0 | G130: 0 | H130: 0 | I130: 0 | J130: 0 | L130: =SUM(L124:L132) -> #REF!
A131: =A90 -> 1 | B131: 3 | C131: Итого за день: | F131: =F97+F101+F111+F116+F123+F130 -> 555 | G131: 20.2 | H131: 20.57 | I131: 70.25 | J131: 551.78 | L131: 66.76
A132: 1 | B132: 4 | C132: Завтрак | D132: гор.блюдо | E132: плов из птицы | F132: 40/160 | G132: 15.44 | H132: 19.29 | I132: 45.88 | J132: 419 | K132: ттк 2021
D133: закуска | E133: салат из моркови с яблоками | F133: 60 | G133: 0.6 | H133: 6.08 | I133: 5.27 | J133: 79 | K133: ттк2021
D134: гор.напиток | E134: напиток яблочный | F134: 200 | G134: 0.1 | H134: 0.1 | I134: 12.43 | J134: 52 | K134: ттк 2004/701
D135: хлеб | E135: хлебная корзина | F135: 20/20 | G135: 2.52 | H135: 0.36 | I135: 18.84 | J135: 91
D136: фрукты
D137: акт2021 | E137: печенье сдобное Шоколадное | F137: 2 шт/30 | G137: 2.42 | H137: 7.24 | I137: 20.52 | J137: 158
D139: итого | F139: 530 | G139: =SUM(G132:G138) -> 21.08 | H139: 33.07 | I139: 102.94 | J139: 798.89 | L139: 66.76
A140: =A132 -> 1 | B140: 4 | C140: Завтрак 2 | D140: фрукты
D143: итого | F143: =SUM(F140:F142) -> 0 | G143: 0 | H143: 0 | I143: 0 | J143: 0 | L143: =SUM(L140:L148) -> #REF!
A144: =A132 -> 1 | B144: 4 | C144: Обед | D144: закуска
D145: 1 блюдо
D146: 2 блюдо
D147: гарнир
D148: напиток
D149: хлеб бел.
D150: хлеб черн.
D153: итого | F153: =SUM(F144:F152) -> 0 | G153: 0 | H153: 0 | I153: 0 | J153: 0 | L153: =SUM(L150:L158) -> #REF!
A154: =A132 -> 1 | B154: 4 | C154: Полдник | D154: булочное
D155: напиток
D158: итого | F158: =SUM(F154:F157) -> 0 | G158: 0 | H158: 0 | I158: 0 | J158: 0 | L158: =SUM(L151:L157) -> #REF!
A159: =A132 -> 1 | B159: 4 | C159: Ужин | D159: гор.блюдо
D160: гарнир
D161: напиток
D162: хлеб
D165: итого | F165: =SUM(F159:F164) -> 0 | G165: 0 | H165: 0 | I165: 0 | J165: 0 | L165: =SUM(L159:L167) -> #REF!
A166: =A132 -> 1 | B166: 4 | C166: Ужин 2 | D166: кисломол.
D167: булочное
D168: напиток
D169: фрукты
D172: итого | F172: =SUM(F166:F171) -> 0 | G172: 0 | H172: 0 | I172: 0 | J172: 0 | L172: =SUM(L166:L174) -> #REF!
A173: =A132 -> 1 | B173: 4 | C173: Итого за день: | F173: =F139+F143+F153+F158+F165+F172 -> 530 | G173: 21.08 | H173: 33.07 | I173: 102.94 | J173: 798.89 | L173: 66.76
A174: 1 | B174: 5 | C174: Завтрак | D174: гор.блюдо | E174: Биточки рыбные с картофельным пюре с маслом сливочным | F174: 90/150 | G174: 15.48 | H174: 12.45 | I174: 27.94 | J174: 289 | K174: ттк 2021
D175: закуска | E175: салат из квашеной капусты с луком | F175: 60 | G175: 0.96 | H175: 3.06 | I175: 4.94 | J175: 53 | K175: 47/2015
D176: гор.напиток | E176: чай с сахаром | F176: 200/8 | G176: 0.01 | H176: 0.01 | I176: 8 | J176: 32 | K176: ттк 2021
D177: хлеб | E177: хлебная корзина | F177: 20/20 | G177: 2.52 | H177: 0.36 | I177: 18.84 | J177: 89
D178: фрукты | E178: десерт фруктовый | F178: 50 | G178: 0.2 | H178: 0.2 | I178: 4.9 | J178: 24
D181: итого | F181: 598 | G181: 18.91 | H181: 13.82 | I181: 67.28 | J181: 476.08 | L181: 66.76
A182: =A174 -> 1 | B182: 5 | C182: Завтрак 2 | D182: фрукты
D185: итого | F185: =SUM(F182:F184) -> 0 | G185: 0 | H185: 0 | I185: 0 | J185: 0 | L185: =SUM(L182:L190) -> #REF!
A186: =A174 -> 1 | B186: 5 | C186: Обед | D186: закуска
D187: 1 блюдо
D188: 2 блюдо
D189: гарнир
D190: напиток
D191: хлеб бел.
D192: хлеб черн.
D195: итого | F195: =SUM(F186:F194) -> 0 | G195: 0 | H195: 0 | I195: 0 | J195: 0 | L195: =SUM(L192:L200) -> #REF!
A196: =A174 -> 1 | B196: 5 | C196: Полдник | D196: булочное
D197: напиток
D200: итого | F200: =SUM(F196:F199) -> 0 | G200: 0 | H200: 0 | I200: 0 | J200: 0 | L200: =SUM(L193:L199) -> #REF!
A201: =A174 -> 1 | B201: 5 | C201: Ужин | D201: гор.блюдо
D202: гарнир
D203: напиток
D204: хлеб
D207: итого | F207: =SUM(F201:F206) -> 0 | G207: 0 | H207: 0 | I207: 0 | J207: 0 | L207: =SUM(L201:L209) -> #REF!
A208: =A174 -> 1 | B208: 5 | C208: Ужин 2 | D208: кисломол.
D209: булочное
D210: напиток
D211: фрукты
D214: итого | F214: =SUM(F208:F213) -> 0 | G214: 0 | H214: 0 | I214: 0 | J214: 0 | L214: =SUM(L208:L216) -> #REF!
A215: =A174 -> 1 | B215: 5 | C215: Итого за день: | F215: =F181+F185+F195+F200+F207+F214 -> 598 | G215: 18.91 | H215: 13.82 | I215: 67.28 | J215: 476.08 | L215: 66.76
A216: 1 | B216: 6 | C216: Завтрак | D216: гор.блюдо | E216: Пельмени "Для умниц и умников" отварные | F216: 150 | G216: 13.4 | H216: 9.23 | I216: 21 | J216: 221 | K216: ттк 2020
D217: закуска | E217: салат из соленых огурцов | F217: 60 | G217: 0.52 | H217: 3.06 | I217: 1.56 | J217: 36 | K217: 21/2015
D218: гор.напиток | E218: чай с сахаром | F218: 200/8 | G218: 0.01 | H218: 0.01 | I218: 8 | J218: 32 | K218: ттк 2021
D219: хлеб | E219: хлебная корзина | F219: 20/20 | G219: 2.52 | H219: 0.36 | I219: 18.84 | J219: 91
D220: фрукты
E221: печенье весовое | F221: 3шт/51 | G221: 3.52 | H221: 7.04 | I221: 37.79 | J221: 227
D223: итого | F223: 509 | G223: 19.45 | H223: 16.64 | I223: 85.53 | J223: 570.67 | L223: 66.76
A224: =A216 -> 1 | B224: 6 | C224: Завтрак 2 | D224: фрукты
D227: итого | F227: =SUM(F224:F226) -> 0 | G227: 0 | H227: 0 | I227: 0 | J227: 0 | L227: =SUM(L224:L232) -> #REF!
A228: =A216 -> 1 | B228: 6 | C228: Обед | D228: закуска
D229: 1 блюдо
D230: 2 блюдо
D231: гарнир
D232: напиток
D233: хлеб бел.
D234: хлеб черн.
D237: итого | F237: =SUM(F228:F236) -> 0 | G237: 0 | H237: 0 | I237: 0 | J237: 0 | L237: =SUM(L234:L242) -> #REF!
A238: =A216 -> 1 | B238: 6 | C238: Полдник | D238: булочное
D239: напиток
D242: итого | F242: =SUM(F238:F241) -> 0 | G242: 0 | H242: 0 | I242: 0 | J242: 0 | L242: =SUM(L235:L241) -> #REF!
A243: =A216 -> 1 | B243: 6 | C243: Ужин | D243: гор.блюдо
D244: гарнир
D245: напиток
D246: хлеб
D249: итого | F249: =SUM(F243:F248) -> 0 | G249: 0 | H249: 0 | I249: 0 | J249: 0 | L249: =SUM(L243:L251) -> #REF!
A250: =A216 -> 1 | B250: 6 | C250: Ужин 2 | D250: кисломол.
D251: булочное
D252: напиток
D253: фрукты
D256: итого | F256: =SUM(F250:F255) -> 0 | G256: 0 | H256: 0 | I256: 0 | J256: 0 | L256: =SUM(L250:L258) -> #REF!
A257: =A216 -> 1 | B257: 6 | C257: Итого за день: | F257: =F223+F227+F237+F242+F249+F256 -> 509 | G257: 19.45 | H257: 16.64 | I257: 85.53 | J257: 570.67 | L257: 66.76
A258: 1 | B258: 7 | C258: Завтрак | D258: гор.блюдо
D260: гор.напиток
D261: хлеб
D262: фрукты
D265: итого | F265: =SUM(F258:F264) -> 0 | G265: 0 | H265: 0 | I265: 0 | J265: 0 | L265: =SUM(L258:L264) -> 0
A266: =A258 -> 1 | B266: 7 | C266: Завтрак 2 | D266: фрукты
D269: итого | F269: =SUM(F266:F268) -> 0 | G269: 0 | H269: 0 | I269: 0 | J269: 0 | L269: =SUM(L266:L274) -> #REF!
A270: =A258 -> 1 | B270: 7 | C270: Обед | D270: закуска
D271: 1 блюдо
D272: 2 блюдо
D273: гарнир
D274: напиток
D275: хлеб бел.
... 229 more rows
